Cogmind - Beta 10.2 *** ADVENTURER MODE // 2020.11.12 @ 17:54:32 // Halloween2020/ForbiddenLore Player: STB Result: Self-destructed Performance ------------- Evolutions (1) 500 Regions Visited (2) 400 Robots Destroyed (42) 210 Value Destroyed (1144) 1144 Prototype IDs (0) 0 Alien Tech Used (0) 0 Bonus (22) 22 TOTAL SCORE: 2276 Bonus ------- High Alert Combat Kills 22 Cogmind --------- Core Integrity 343/400 Matter 300/300 Energy 265/265 System Corruption 0% Temperature Cool (0) Movement Treading (160) Location -9/Materials Parts ------- > --- POWER (2) -------- Improved Ion Engine > --- PROPULSION (2) --- Light Treads Improved Treads > --- UTILITY (3) ------ Cooling System Large Storage Unit Improved Targeting Computer > --- WEAPON (2) ------- Beam Rifle Spread Laser > --- INVENTORY (10) --- Medium Matter Pod (100) Sensor Array Medium Laser Beam Rifle Particle Cannon Peak State ------------ > --- POWER ------------ Improved Ion Engine Improved Ion Engine > --- PROPULSION ------- Light Treads Improved Treads > --- UTILITY ---------- Cooling System Large Storage Unit Improved Targeting Computer > --- WEAPON ----------- Beam Rifle Spread Laser > --- INVENTORY -------- Ion Engine Light Treads Medium Matter Pod Sensor Array Medium Laser Beam Rifle [Rating: 16] Favorites ----------- Power Ion Engine Engine Ion Engine Propulsion Light Treads Treads Light Treads Utility Medium Storage Unit Device Improved Heat Sink Storage Medium Storage Unit Processor Improved Targeting Computer Protection Hardened Light Armor Plating Weapon Assault Rifle Energy Gun EM Pulse Gun Energy Cannon Particle Cannon Ballistic Gun Assault Rifle Build | -11 -10 -9 ------- Run | Scr Mat Mat Slots Evolved 2 | . . 2 Power 1 | . . 1 Propulsion . | . . . Utility 1 | . . 1 Weapon . | . . . Parts Attached 36 | 6 9 21 Power 10 | 1 3 6 Engine 10 | 1 3 6 Core . | . . . Reactor . | . . . Propulsion 7 | 2 1 4 Treads 7 | 2 1 4 Leg . | . . . Wheel . | . . . Hover . | . . . Flight . | . . . Utility 9 | 1 3 5 Device 3 | . 2 1 Storage 4 | 1 1 2 Processor 1 | . . 1 Hackware . | . . . Protection 1 | . . 1 Artifact . | . . . Weapon 10 | 2 2 6 Energy Gun 6 | . 1 5 Energy Cannon 1 | . . 1 Ballistic Gun 3 | 2 1 . Ballistic Cannon . | . . . Launcher . | . . . Special Weapon . | . . . Impact Weapon . | . . . Slashing Weapon . | . . . Piercing Weapon . | . . . Special Melee Weapon . | . . . Unidentified Prototypes . | . . . Parts Lost 2 | . . 2 Power 1 | . . 1 Propulsion . | . . . Utility . | . . . Weapon 1 | . . 1 Highest Loss Streak 1 | . . 1 Average Slot Usage (%) 97 | . 97 96 Engine 17 | . 14 21 Treads 23 | . 26 19 Device 12 | . 13 11 Storage 13 | . 14 12 Processor 1 | . . 2 Protection 2 | . . 6 Energy Gun 14 | . 10 19 Ballistic Gun 11 | . 17 2 Naked Turns . | . . . Heaviest Build 43 | 13 18 43 Greatest Support 43 | 40 40 43 Greatest Overweight (x) 2 | 2 . 1 Average Overweight (x) . | . . . Largest Inventory Capacity 10 | 6 8 10 Average Capacity 7 | 5 7 9 Most Carried 6 | 2 6 6 Average Carried 3 | . 3 3 Final Capacity 10 | 6 8 10 Final Carried 5 | . 5 5 Class Distribution -------------------- 88% | Mutant 11% | Scavenger-Mutant Dominant Class ---------------- Mutant | -10/Materials Mutant | -9/Materials Resources | -11 -10 -9 ----------- Run | Scr Mat Mat Matter Collected 839 | 216 365 258 Remotely . | . . . Salvage Created 1490 | . 579 911 Parts 86 | . 30 56 Haulers Intercepted 2 | . . 2 Recyclers Shooed 5 | . 1 4 Parts Field Recycled . | . . . Retrieved Matter . | . . . Parts Self-Destructed . | . . . Prevented . | . . . Kills | -11 -10 -9 ------- Run | Scr Mat Mat Combat Hostiles Destroyed 31 | . 11 20 Guns 29 | . 11 18 AOE 2 | . . 2 Classes Destroyed 8 | . 3 5 Worker 2 | . 1 1 Hauler 2 | . . 2 Recycler 1 | . . 1 Watcher 6 | . 3 3 Swarmer 7 | . . 7 Grunt 18 | . 11 7 Duelist 1 | . . 1 Sentry 5 | . . 5 Best Kill Streak 10 | . 2 10 Combat Bots Only 10 | . 2 10 Max Kills in Single Turn 2 | . 2 2 Gunslinging 1 | . 1 . Exploded 2 | . . 2 Melee . | . . . Uniques/NPCs Destroyed . | . . . Combat | -11 -10 -9 -------- Run | Scr Mat Mat Damage Taken 1134 | . 425 709 Core 136 | . 79 57 Absorbed by Shields . | . . . Core Remaining (%) 84 | 100 68 . Volleys Fired 95 | . 44 51 Largest 2 | . 2 2 Hottest 124 | . 60 124 Shots Fired 186 | . 88 98 Gun 180 | . 88 92 Cannon 6 | . . 6 Launcher . | . . . Special . | . . . Kinetic 65 | . 65 . Thermal 79 | . . 79 Explosive . | . . . Electromagnetic 42 | . 23 19 Robot Hit Streak 29 | . 27 29 Robot Miss Streak 3 | . 2 3 Penetration Max . | . . . Secondary Targets 2 | . 1 1 Max Gunslinging Chain 1 | . 1 1 Shots Hit Robots 148 | . 66 82 Core Hits 92 | . 29 63 Critical Hits . | . . . Critical Kills . | . . . Critical Parts Destroyed . | . . . Melee Attacks . | . . . Impact . | . . . Slashing . | . . . Piercing . | . . . Sneak Attacks . | . . . Combat Hostiles . | . . . Follow-up Attacks . | . . . Damage Inflicted 2320 | . 902 1418 Guns 1982 | . 861 1121 Cannons 60 | . . 60 Explosions 186 | . . 186 Melee . | . . . Ramming 92 | . 41 51 Kinetic 619 | . 619 . Thermal 1083 | . . 1083 Explosive . | . . . Electromagnetic 526 | . 242 284 Impact . | . . . Slashing . | . . . Piercing . | . . . Highest Corruption . | . . . Average Corruption . | . . . Corruption Purged . | . . . Overload Shots . | . . . Overflow Damage 2 | . . 2 Projectiles . | . . . Explosions 2 | . . 2 Melee . | . . . Knockbacks . | . . . Impact . | . . . Kinetic . | . . . Secondary . | . . . Self-Inflicted Damage 14 | . . 14 Shots 2 | . . 2 Rammed 19 | . 10 9 Targets Rammed 22 | . 11 11 Kicked . | . . . Crushed 3 | . 1 2 Highest Temperature 117 | . 5 117 Average Temperature 19 | . 2 20 Received Heat Transfer 600 | . 309 291 Siege Activations . | . . . Robots Corrupted . | . . . Combat Hostiles . | . . . Parts Fried . | . . . Impact Corruptions . | . . . Robots Melted . | . . . Combat Hostiles . | . . . Parts Melted 1 | . . 1 Heat Transferred 2304 | . . 2304 Parts Sabotaged . | . . . Parts Stolen . | . . . Parts Stripped . | . . . Power Chain Reactions 1 | . . 1 Missiles Intercepted . | . . . Alert | -11 -10 -9 ------- Run | Scr Mat Mat Peak Influence 465 | . 215 465 Initial 3 | . . 3 Average 107 | . 57 191 Maximum Alert Level 2 | . 1 2 Low Security (%) 73 | 100 94 40 Level 1 22 | . 5 51 Level 2 3 | . . 8 Level 3 . | . . . Level 4 . | . . . Level 5 . | . . . High Security . | . . . Max Security . | . . . Squads Dispatched 1 | . 1 . Investigation 1 | . 1 . Extermination . | . . . Reinforcement . | . . . Assault . | . . . Garrison . | . . . Intercept . | . . . Construction Impeded . | . . . Haulers Reinforced . | . . . Stealth | -11 -10 -9 --------- Run | Scr Mat Mat Distress Signals 2 | . 1 1 Communications Jammed . | . . . Distress Signals . | . . . Times Spotted 43 | . 18 25 Peak Tracking Total 11 | . 5 11 Tactical Retreats 4 | . 3 1 Traps | -11 -10 -9 ------- Run | Scr Mat Mat Traps Triggered 2 | . 1 1 Indirectly . | . . . Trap Hack Attempts . | . . . Triggered . | . . . Disarmed . | . . . Reprogrammed . | . . . Reused . | . . . Traps Extracted . | . . . Installed . | . . . Triggered . | . . . Machines | -11 -10 -9 ---------- Run | Scr Mat Mat Machines Disabled 3 | . 1 2 Max in Single Turn 1 | . 1 1 Machines Sabotaged . | . . . Garrisons Compromised . | . . . Overloaded Fab Kills . | . . . Fab Network Shutdowns . | . . . Hacking | -11 -10 -9 --------- Run | Scr Mat Mat Machines Accessed 1 | . 1 . Terminals . | . . . Fabricators . | . . . Repair Stations 1 | . 1 . Recycling Units . | . . . Scanalyzers . | . . . Garrison Access . | . . . Total Hacks 4 | . 4 . Successful 3 | . 3 . Failed 1 | . 1 . Catastrophic . | . . . Database Lockouts . | . . . Manual . | . . . Terminals . | . . . Fabricators . | . . . Repair Stations 4 | . 4 . Recycling Units . | . . . Scanalyzers . | . . . Garrison Access . | . . . Terminal Hacks . | . . . Fabricator Hacks . | . . . Repair Station Hacks 3 | . 3 . Scan Component 2 | . 2 . Repair 1 | . 1 . Recycling Unit Hacks . | . . . Scanalyzer . | . . . Garrison Access Hacks . | . . . Unauthorized Hacks . | . . . Terminals . | . . . Fabricators . | . . . Repair Stations . | . . . Recycling Units . | . . . Scanalyzers . | . . . Garrison Access . | . . . Data Cores Recovered . | . . . Used . | . . . Hacking Detections . | . . . Full Trace Events . | . . . Feedback Events . | . . . Feedback Blocked . | . . . Robot Schematics Acquired . | . . . Robots Built . | . . . Matter . | . . . Time . | . . . Total Robot Build Rating . | . . . Part Schematics Acquired . | . . . Parts Built . | . . . Matter . | . . . Time . | . . . Total Part Build Rating . | . . . Parts Repaired 1 | . 1 . Time 13 | . 13 . Parts Recycled . | . . . Recycled Matter . | . . . Retrieved Matter . | . . . Retrieved Components . | . . . Parts Scanalyzed . | . . . Part Schematics Acquired . | . . . Parts Damaged . | . . . Bothacking | -11 -10 -9 ------------ Run | Scr Mat Mat Used RIF Installer . | . . . Robots Hacked . | . . . Non-combat . | . . . Combat . | . . . Robot Hacks Applied . | . . . Relay Couplers Released . | . . . Robots Rewired . | . . . Allies Hacked . | . . . Hacks Repelled . | . . . Allies | -11 -10 -9 -------- Run | Scr Mat Mat Total Allies . | . . . Largest Group . | . . . Highest-Rated Group . | . . . Highest-Rated Ally . | . . . Total Orders . | . . . Ally Attacks . | . . . Total Damage . | . . . Kills . | . . . Allies Corrupted . | . . . Allies Melted . | . . . Intel | -11 -10 -9 ------- Run | Scr Mat Mat Robot Analysis Total . | . . . Derelict Logs Recovered . | . . . Drone Launches . | . . . Drone Recoveries . | . . . Exploration | -11 -10 -9 ------------- Run | Scr Mat Mat Turns Passed 3025 | 76 1779 1170 Spaces Moved 1606 | 46 1001 559 Core 16 | 16 . . Treads 1590 | 30 1001 559 Legs . | . . . Wheels . | . . . Hover . | . . . Flight . | . . . Fastest Speed 50 | 50 160 160 Average Speed 162 | 141 160 168 Slowest Speed 180 | 160 160 180 Overloaded Moves . | . . . Propulsion Burnouts . | . . . Robots Hopped . | . . . Cave-ins Triggered . | . . . Exploration Rate (%) 45 | 4 95 37 Regions Visited 2 Branch Regions . Pre-discovered Areas . | . . . Known Exits Taken . | . . . Unknown Exits Taken 2 | 1 1 . Scrap Searched . | . . . Spaces Dug . | . . . Terrain Destroyed 2 | . . 2 Melee . | . . . Projectile . | . . . AOE 2 | . . 2 Terrain Rammed . | . . . Walls Destroyed . | . . . Machines Disabled . | . . . Actions | -11 -10 -9 --------- Run | Scr Mat Mat Total 1821 | 57 1084 680 Wait . | . . . Move 1604 | 45 1000 559 Hop . | . . . Pick Up 41 | 6 13 22 Fast Attach . | . . . Attach 14 | 6 2 6 Detach . | . . . Swap 22 | . 7 15 Drop 23 | . 7 16 Fire 95 | . 44 51 Melee . | . . . Ram . | . . . Kick . | . . . Crush 22 | . 11 11 Escape Stasis . | . . . Rewire . | . . . Trap . | . . . Miscellaneous . | . . . Route ------- -11/Scrapyard -10/Materials (discovered 5 exits: [*Mat x3] / [*Min x2]) -9/Materials (discovered 1 exit: [*Min]) History --------- Turn | Location | Event 26 | -11/Scrapyard | Discovered new exit (range 13) 77 | -11/Scrapyard | Entered Materials 311 | -10/Materials | Build established: Mutant 439 | -10/Materials | Discovered new exit (range 9) 536 | -10/Materials | Discovered new exit (range 16) 653 | -10/Materials | Discovered new exit (range 9) 846 | -10/Materials | Discovered new exit (range 11) 1625 | -10/Materials | Discovered new exit (range 11) 1678 | -10/Materials | Repaired Lgt. Treads 1856 | -10/Materials | Entered another Materials area 1856 | -9/Materials | Evolved 2 slots: Power x1, Utility x1 2366 | -9/Materials | Destroyed 10 combat bots 2540 | -9/Materials | Discovered new exit (range 16) 2886 | -9/Materials | Build established: Scavenger-Mutant 3026 | -9/Materials | Self-destructed Last Messages --------------- Slammed into K-01 Serf. R-06 Scavenger collects Transport Network Coupler. Slammed into U-05 Engineer. R-06 Scavenger collects Prototype Energy Cannon. W-16 Scout destroyed. R-06 Scavenger collects Prototype Energy Cannon. W-16 Scout destroyed. R-06 Scavenger collects Visual Processing Unit. Acquired Imp. Treads. Dropped Lgt. Treads. Dropped Ion Engine. U-05 Engineer lays Concrete. Acquired Particle Cannon. G-34 Mercenary destroyed. G-47 Trooper destroyed. Imp. Ion Engine destroyed. Y-45 Defender destroyed. R-06 Scavenger collects Aluminum Leg. R-06 Scavenger destroyed. Acquired 25 matter. Map ----- +----------------------------------------------------+ | ??????????????????????????????????????????????# | | ??????????????????????????????????????????????# | | ??????????????????????????????????????????????# | | ??????????????????????????????????????????????# | | ??????????????????????????????????????????????# | | ??????????????????????????????????????????????# # | | ????????????????????? ??????????????????????# # | | ????????????????????? ??????????????????????#[# | | ???????????????????? ??????????????????????#|# | | ????????????????????# #?????????????????????#|# | | ????????????????????# #?????????????????????#%## | | ????????????????????# #?????????????????????#|#? | | ????????????????????# #?????????????????#####|#? | | ????????????????????# #?????????????????#!! ## | | ????????????????????# #??????##########?#!! | | ????????????????????# #??????# #?#!! ## | | ????????????????????/ +??????# #?#!! #? | | ????????????????????# #??????# #?#!! #? | | ????????????????????# #??????# #?#!! #? | | ????????????????????# #??????# #?##### #? | | ????????????????????# #??????# #?????# #? | | ????????????????????# ######## #?????# #? | | ????????????????????# #===! # ####### #? | | ????????????????????# #*%%[ # % !%+% #? | | ????????????????????# #%!%*= ####+#####% #? | | ????????????######??# #@""" ## % ###% #? | | ???????????#""|"|"??# +[""" *## % #? | | ???????????# "|"|" ?#% # """ ##]!T #? | | ??????# ## ## #########]] ^ #? | | ??????# % % % ####### ^+? | | ?????+ < ##########] ##?????# #? | | ??????# #????????# ######## #? | | ??????###+## ##+#######????# # # #? | | ???????????######### #?#### # === # #? | | ??????????????????# ###!! # == # #? | | ??????????????????## !=* ##! # == # #? | | ???????????????????#! = ## # # #? | | ???????????????????# ##! # # #? | | ???????????????????# ##! # # ?? | | ???????????????????# "" ###!! # #????? | | ???????????????????# S"" #?#### + #????? | | ???????????????????# "" #????# #% #????? | | ???????????????????############### # #????? | | ???????????????????# + # % #????? | | ???????????????????#| # #########+###### ##????? | | ???????????????????# # # # """ ###?????? | | ???????????????????# # # T # "T" ##???????? | | ???????????????????# # # # #????????? | | ???????????????????# # # # #????????? | | ???????????????????# + + # #????????? | +----------------------------------------------------+ Best States ------------- Heat Dissipation 50 Energy Generation 19 Energy Capacity 430 Matter Stores 333 Matter Capacity 350 Sight Range 16 Robot Scan Range 10 Terrain Scan Density 10 Armor Coverage 150 Resistance: KI 20 Resistance: TH 20 Resistance: EX 20 Resistance: EM 20 Resistance: I 20 Resistance: S 20 Resistance: P 20 Evasion (%) 40 Targeting Accuracy 6 Recoil Reduction 2 Offensive Hacking 10 Item Schematics ----------------- None Robot Schematics ------------------ None Fabricated ------------ Nothing Alien Tech Used ----------------- None Achievements -------------- None Challenges ------------ None Game ------ Seed MakeshiftHackingAnalyzer Manual? 0 Play Time 00:20:46 Cumulative 8.7 hours Start 2020.11.12 @ 17:36:15 End 2020.11.12 @ 17:54:32 Sessions 1 Manual Loads 0 Difficulty Adventurer Special Mode Halloween2020/ForbiddenLore Game No. 30 Rogue 1 Adventurer 29 Explorer 0 Win Type - Total 0 Types 0/0/0/0/0/0/0/0/0 Lore% 7 Gallery% 16 Achievement% 11 Wizard Run 0 Options --------- ASCII 0 Keyboard 0 Movement Mouse Keybinds 0 Fullscreen 1 Font 18/SmallcapsGlow Map View 76x50 Tactical HUD 0 Map Filters NONE Filters NONE Steam 1 RUN: 7644b159-ab47-4adf-93cd-e45164a37916